Cogmind - Beta 15 @@@ ROGUE MODE // 2025.05.27 @ 00:25:18 Player: jumpy Result: Destroyed by H-66 Slayer with Gauss Rifle Performance ------------- Evolutions (4) 2000 Regions Visited (8) 1600 Robots Destroyed (33) 165 Value Destroyed (1188) 1188 Prototype IDs (0) 0 Alien Tech Used (0) 0 Bonus (800) 800 TOTAL SCORE: 5753 Bonus ------- Registered with UFD 300 Met Optimus in HQ 500 Cogmind --------- Core Integrity 0/850 Matter 211/300 Energy 84/100 System Corruption 2% Temperature Cool (0) Movement Core (400) Ox7 Location -5/Proximity Caves Parts ------- > --- POWER (1) -------- (None) > --- PROPULSION (4) --- (None) > --- UTILITY (7) ------ Large Storage Unit Enhanced Optical Array Advanced Signal Interpreter Advanced Terrain Scanner Advanced Terrain Scan Processor Improved Targeting Computer > --- WEAPON (3) ------- CR-A16's Pointy Stick > --- INVENTORY (15) --- Light Angular Momentum Engine Advanced Heat Sink Improved Trap Scanner Enhanced Optical Array Advanced Signal Interpreter 0b10 Decoder Chip [Generic] 0b10 Decoder Chip [Skirmisher] Kinecellerator Experimental Hacking Suite Phasing AFG Peak State ------------ > --- POWER ------------ Fission Core > --- PROPULSION ------- Advanced Treads Medium Treads Improved Medium Treads > --- UTILITY ---------- Large Storage Unit Enhanced Optical Array Advanced Signal Interpreter Advanced Terrain Scanner Advanced Terrain Scan Processor Improved Targeting Computer Improved Medium Armor Plating > --- WEAPON ----------- Heavy Battle Rifle Heavy Battle Rifle Heavy Battle Rifle > --- INVENTORY -------- Angular Momentum Engine Light Angular Momentum Engine Advanced Heat Sink Improved Trap Scanner Enhanced Optical Array Advanced Signal Interpreter Advanced Signal Interpreter 0b10 Decoder Chip [Generic] 0b10 Decoder Chip [Skirmisher] Kinecellerator Improved Shield Generator Experimental Hacking Suite Phasing AFG Enhanced Flamer CR-A16's Pointy Stick [Rating: 63] Favorites ----------- Power Nuclear Core Engine Light Deuterium Engine Power Core Nuclear Core Propulsion Light Treads Treads Light Treads Utility Large Storage Unit Device Seismic Detector Storage Large Storage Unit Processor Enhanced Optical Array Hackware Hacking Suite Protection Improved Medium Armor Plating Weapon Heavy Battle Rifle Energy Gun Gatling Laser Energy Cannon Heavy Particle Cannon Ballistic Gun Heavy Battle Rifle Ballistic Cannon Advanced Assault Cannon Launcher Improved Grenade Launcher Special Weapon Enhanced Flamer Slashing Weapon Makeshift Axe Piercing Weapon Makeshift Spear Build | -11 -10 -10 -8 -6 -6 -6 -6 -5 ------- Run | Yrd Mat Sub Scr Fac Low Low Zio Pro Slots Evolved 8 | . . . . 8 . . . . Power . | . . . . . . . . . Propulsion 2 | . . . . 2 . . . . Utility 5 | . . . . 5 . . . . Weapon 1 | . . . . 1 . . . . Parts Attached 62 | 8 . . 10 12 6 21 1 4 Power 11 | 2 . . 3 . . 5 . 1 Engine 9 | 2 . . 2 . . 4 . 1 Core 2 | . . . 1 . . 1 . . Reactor . | . . . . . . . . . Propulsion 12 | 2 . . 3 . 2 5 . . Treads 12 | 2 . . 3 . 2 5 . . Leg . | . . . . . . . . . Wheel . | . . . . . . . . . Hover . | . . . . . . . . . Flight . | . . . . . . . . . Utility 22 | 2 . . 1 8 2 7 1 1 Device 12 | 1 . . . 5 1 4 . 1 Storage 2 | 1 . . 1 . . . . . Processor 6 | . . . . 3 1 1 1 . Hackware 1 | . . . . . . 1 . . Protection 1 | . . . . . . 1 . . Artifact . | . . . . . . . . . Weapon 17 | 2 . . 3 4 2 4 . 2 Energy Gun 1 | . . . . . . 1 . . Energy Cannon 2 | . . . 1 1 . . . . Ballistic Gun 6 | 2 . . 1 . . 3 . . Ballistic Cannon 2 | . . . 1 . 1 . . . Launcher 1 | . . . . 1 . . . . Special Weapon 1 | . . . . . 1 . . . Impact Weapon . | . . . . . . . . . Slashing Weapon 2 | . . . . 2 . . . . Piercing Weapon 2 | . . . . . . . . 2 Special Melee Weapon . | . . . . . . . . . Unidentified Prototypes . | . . . . . . . . . Parts Lost 35 | . . . . 2 3 18 . 12 Power 5 | . . . . . . 3 . 2 Propulsion 12 | . . . . . 1 8 . 3 Utility 8 | . . . . . 2 4 . 2 Weapon 10 | . . . . 2 . 3 . 5 Highest Loss Streak 12 | . . . . 1 2 8 . 12 To Critical Strikes 1 | . . . . . . . . 1 Average Backups 11 | 3 6 8 10 12 14 10 14 13 Power 1 | . 1 1 1 2 2 1 2 1 Propulsion 1 | 1 2 1 1 2 5 1 . . Utility 4 | . 2 3 3 2 4 4 8 9 Weapon 3 | . 1 2 3 5 2 3 3 2 Tool/Special . | . . . . . . . . . Unused Backups 17 | . . 1 4 1 1 . 3 7 Power 1 | . . . . . . . 1 . Propulsion 3 | . . 1 1 . 1 . . . Utility 9 | . . . 1 . . . 1 7 Weapon 4 | . . . 2 1 . . 1 . Tool/Special . | . . . . . . . . . Average Slot Usage (%) 95 | . 99 100 100 94 97 83 93 83 Engine 5 | . 14 14 9 . . 5 . 1 Core 4 | . . . 4 6 6 . 6 3 Treads 25 | . 27 28 28 25 26 21 20 13 Device 14 | . 14 14 14 29 22 7 6 6 Storage 9 | . 14 14 14 6 6 6 6 6 Processor 9 | . . . . 8 14 21 26 26 Protection 1 | . . . . . . 2 6 3 Energy Cannon 5 | . . . 10 2 6 . . . Ballistic Gun 8 | . 28 28 6 . . 7 20 15 Ballistic Cannon 5 | . . . 10 4 4 . . . Slashing Weapon 1 | . . . . 6 6 3 . . Peak Build Rating 63 | 7 8 8 22 56 59 59 63 63 Average Rating 34 | 5 7 7 17 49 56 48 61 54 On Entrance 30 | . 7 8 8 22 52 58 59 63 Naked Turns . | . . . . . . . . . Heaviest Build 55 | 15 15 15 42 51 53 55 50 50 Greatest Support 83 | 40 40 40 42 80 80 83 80 80 Greatest Overweight (x) 7 | . . . 1 . . 1 . 7 Average Overweight (x) . | . . . . . . . . . Largest Inventory Capacity 15 | 8 8 8 15 15 15 15 15 15 Average Capacity 12 | 7 8 8 10 15 15 15 15 15 Most Carried 15 | 6 8 8 15 15 15 15 15 15 Average Carried 11 | 3 6 7 10 12 14 10 14 13 Final Capacity 15 | 8 8 8 15 15 15 15 15 15 Final Carried 15 | 6 8 8 15 15 15 12 15 10 Class Distribution -------------------- 30% | Derelict-Mutant 28% | Mutant 18% | Derelict-Skirmisher 8% | Derelict-Gladiator 7% | Derelict-Assassin 3% | Scavenger-Mutant Dominant Class ---------------- Mutant | -10/Materials Mutant | -10/Subcaves Derelict-Mutant | -8/Scraptown Derelict-Gladiator | -6/Factory Derelict-Mutant | -6/Lower Caves Scavenger-Mutant | -6/Lower Caves Derelict-Skirmisher | -6/Zion Derelict-Skirmisher | -5/Proximity Caves Resources | -11 -10 -10 -8 -6 -6 -6 -6 -5 ----------- Run | Yrd Mat Sub Scr Fac Low Low Zio Pro Matter Collected 991 | 317 . 26 119 160 127 232 10 . Remotely . | . . . . . . . . . Salvage Created 1418 | 93 . . . 669 6 543 . 107 Parts 76 | 11 . . . 32 . 27 . 6 Haulers Intercepted 1 | . . . . 1 . . . . Recyclers Shooed . | . . . . . . . . . Parts Field Recycled . | . . . . . . . . . Retrieved Matter . | . . . . . . . . . Parts Self-Destructed 43 | . . 4 . . 4 28 1 6 Prevented 4 | . . . . . 2 2 . . Kills | -11 -10 -10 -8 -6 -6 -6 -6 -5 ------- Run | Yrd Mat Sub Scr Fac Low Low Zio Pro Combat Hostiles Destroyed 26 | . . . . 9 1 14 . 2 Melee 15 | . . . . 8 . 7 . . Guns 5 | . . . . . . 3 . 2 Cannons 6 | . . . . 1 1 4 . . Classes Destroyed 11 | 2 . . . 6 1 2 . . Builder 1 | . . . . 1 . . . . Tunneler 3 | 3 . . . . . . . . Hauler 1 | . . . . 1 . . . . Recycler 2 | 1 . . . 1 . . . . Drone 1 | . . . . . . 1 . . Swarmer 12 | . . . . 4 . 8 . . Grunt 6 | . . . . 2 . 3 . 1 Sentry 4 | . . . . 2 . 2 . . Hunter 1 | . . . . . . 1 . . Programmer 2 | . . . . 1 . . . 1 Behemoth 1 | . . . . . 1 . . . Best Kill Streak 7 | 3 . . . 7 1 5 . 2 Combat Bots Only 5 | . . . . 4 1 5 . 2 Max Kills in Single Turn 2 | 1 . . . 1 1 2 . 1 Gunslinging . | . . . . . . . . . Exploded . | . . . . . . . . . Melee 1 | . . . . 1 . 1 . . Uniques/NPCs Destroyed . | . . . . . . . . . Combat | -11 -10 -10 -8 -6 -6 -6 -6 -5 -------- Run | Yrd Mat Sub Scr Fac Low Low Zio Pro Hostile Shots Fired 412 | . . 10 . 73 53 177 . 99 Missed 104 | . . 3 . 26 15 42 . 18 Hits 308 | . . 7 . 47 38 135 . 81 Melee 2 | . . . . 2 . . . . Projectile 306 | . . 7 . 45 38 135 . 81 Critical Strikes 10 | . . . . . 1 6 . 3 Damage Taken 4936 | . . 52 . 804 575 2090 . 1415 Core 868 | . . 8 . 54 56 427 . 323 Absorbed by Shields 21 | . . . . . . . . 21 Regen/Repaired (Parts) 78 | . . . . . . . 78 . Core Remaining (%) 98 | 100 . . 96 . . . . . Volleys Fired 56 | 7 . . . 5 12 20 . 12 Largest 3 | 2 . . . 1 2 2 . 3 Hottest 129 | 40 . . . 85 129 129 . 99 Shots Fired 92 | 14 . . . 5 13 27 . 33 Gun 59 | 14 . . . . . 12 . 33 Cannon 33 | . . . . 5 13 15 . . Launcher . | . . . . . . . . . Special . | . . . . . . . . . Kinetic 66 | 14 . . . . 12 7 . 33 Thermal 26 | . . . . 5 1 20 . . Explosive . | . . . . . . . . . Electromagnetic . | . . . . . . . . . Robot Hit Streak 15 | 3 . . . 4 15 6 . 4 Robot Miss Streak 8 | 2 . . . 1 . 8 . 3 Penetration Max . | . . . . . . . . . Secondary Targets 1 | . . . . . . . . 1 Max Gunslinging Chain 1 | . . . . . . . . 1 Shots Hit Robots 120 | 7 . . . 26 13 48 . 26 Core Hits 51 | 4 . . . 13 4 24 . 6 Critical Kills . | . . . . . . . . . Critical Parts Destroyed . | . . . . . . . . . Critical Strikes 9 | . . . . 3 2 4 . . Blast 2 | . . . . . 2 . . . Sever 7 | . . . . 3 . 4 . . Melee Attacks 87 | . . . . 28 . 54 . 5 Impact . | . . . . . . . . . Slashing 82 | . . . . 28 . 54 . . Piercing 5 | . . . . . . . . 5 Sneak Attacks 4 | . . . . 4 . . . . Combat Hostiles . | . . . . . . . . . Follow-up Attacks . | . . . . . . . . . Damage Inflicted 3950 | 93 . . . 1233 384 1682 . 558 Guns 681 | 93 . . . . . 179 . 409 Cannons 805 | . . . . 123 384 298 . . Explosions . | . . . . . . . . . Melee 2460 | . . . . 1106 . 1205 . 149 Ramming 4 | . . . . 4 . . . . Kinetic 996 | 93 . . . . 351 143 . 409 Thermal 490 | . . . . 123 33 334 . . Explosive . | . . . . . . . . . Electromagnetic . | . . . . . . . . . Impact . | . . . . . . . . . Slashing 2311 | . . . . 1106 . 1205 . . Piercing 149 | . . . . . . . . 149 Highest Corruption 2 | . . . . . . . . 2 Average Corruption 1 | . . . . . . . . 1 Corruption Purged . | . . . . . . . . . Corruption Blocked . | . . . . . . . . . Effects 1 | . . . . . . . . 1 Parts Fused 1 | . . . . . . . . 1 Overload Shots . | . . . . . . . . . Overflow Damage 276 | . . . . 170 . 106 . . Projectiles 11 | . . . . . . 11 . . Explosions . | . . . . . . . . . Melee 265 | . . . . 170 . 95 . . Knockbacks 1 | . . . . . . 1 . . Impact . | . . . . . . . . . Kinetic 1 | . . . . . . 1 . . Secondary . | . . . . . . . . . Self-Inflicted Damage . | . . . . . . . . . Shots . | . . . . . . . . . Rammed 1 | . . . . 1 . . . . Targets Rammed 1 | . . . . 1 . . . . Kicked . | . . . . . . . . . Crushed . | . . . . . . . . . Highest Temperature 183 | . . . . 183 51 121 . 147 Average Temperature 69 | . . . . 93 28 56 . 87 Received Heat Transfer 717 | . . . . 153 36 483 . 45 Siege Activations . | . . . . . . . . . Martial Activations . | . . . . . . . . . Shielding Activations . | . . . . . . . . . Robots Disrupted . | . . . . . . . . . Combat Hostiles . | . . . . . . . . . Robots Corrupted . | . . . . . . . . . Combat Hostiles . | . . . . . . . . . Parts Fried . | . . . . . . . . . Impact Corruptions . | . . . . . . . . . Robots Melted . | . . . . . . . . . Combat Hostiles . | . . . . . . . . . Parts Melted . | . . . . . . . . . Heat Transferred 770 | . . . . 148 37 585 . . Parts Sabotaged . | . . . . . . . . . Parts Stolen . | . . . . . . . . . Parts Stripped . | . . . . . . . . . Power Chain Reactions . | . . . . . . . . . Alert | -11 -10 -10 -8 -6 -6 -6 -6 -5 ------- Run | Yrd Mat Sub Scr Fac Low Low Zio Pro Maximum Alert Level . | . . . . . . . . . Low Security (%) 100 | 100 100 . . 100 . . . . Level 1 . | . . . . . . . . . Level 2 . | . . . . . . . . . Level 3 . | . . . . . . . . . Level 4 . | . . . . . . . . . Level 5 . | . . . . . . . . . High Security . | . . . . . . . . . Max Security . | . . . . . . . . . Peak Influence 181 | 5 . . . 181 . . . . Initial . | . . . . . . . . . Average 13 | 1 . . . 18 . . . . Influence Increases 729 | 20 . . . 299 30 340 . 40 Destroy 0b10 Robot/C 520 | . . . . 180 20 280 . 40 Destroy 0b10 Robot/NC 35 | 20 . . . 15 . . . . Destroy Leader 82 | . . . . 42 10 30 . . Successful Hack 2 | . . . . 2 . . . . Disable Machine 15 | . . . . 15 . . . . Partial Spotted 15 | . . . . 15 . . . . Lose Combat Pursuer 60 | . . . . 30 . 30 . . Influence Decreases 729 | 20 . . . 130 199 340 . 40 Entered New Map 63 | . . . . . 63 . . . Time Decay 486 | 20 . . . 110 136 210 . 10 Lost Part 180 | . . . . 20 . 130 . 30 Squads Dispatched 2 | . . . . 1 . 1 . . Investigation 1 | . . . . . . 1 . . Extermination 1 | . . . . 1 . . . . Reinforcement . | . . . . . . . . . Assault . | . . . . . . . . . Garrison . | . . . . . . . . . Intercept . | . . . . . . . . . Searches Triggered . | . . . . . . . . . Construction Impeded . | . . . . . . . . . Haulers Reinforced . | . . . . . . . . . Active Scanning Responses . | . . . . . . . . . Cargo Convoy Interrupts . | . . . . . . . . . Stealth | -11 -10 -10 -8 -6 -6 -6 -6 -5 --------- Run | Yrd Mat Sub Scr Fac Low Low Zio Pro Distress Signals 1 | . . . . 1 . . . . Communications Jammed . | . . . . . . . . . Distress Signals . | . . . . . . . . . Times Spotted 45 | . . 5 . 19 1 16 . 4 Peak Tracking Total 7 | . . 3 . 4 1 7 . 4 Tactical Retreats 4 | . . . . 2 . 2 . . Traps | -11 -10 -10 -8 -6 -6 -6 -6 -5 ------- Run | Yrd Mat Sub Scr Fac Low Low Zio Pro Traps Triggered 1 | . 1 . . . . . . . Indirectly . | . . . . . . . . . Trap Hack Attempts . | . . . . . . . . . Triggered . | . . . . . . . . . Disarmed . | . . . . . . . . . Reprogrammed . | . . . . . . . . . Reused . | . . . . . . . . . Traps Extracted . | . . . . . . . . . Installed . | . . . . . . . . . Triggered . | . . . . . . . . . Machines | -11 -10 -10 -8 -6 -6 -6 -6 -5 ---------- Run | Yrd Mat Sub Scr Fac Low Low Zio Pro Machines Disabled 2 | . . . . 1 . 1 . . Max in Single Turn 1 | . . . . 1 . 1 . . Machines Repaired . | . . . . . . . . . Machines Dismantled . | . . . . . . . . . Machines Sabotaged . | . . . . . . . . . Overloaded Fab Kills . | . . . . . . . . . Hacking | -11 -10 -10 -8 -6 -6 -6 -6 -5 --------- Run | Yrd Mat Sub Scr Fac Low Low Zio Pro Machines Accessed 4 | . . . 1 2 . 1 . . Terminals 2 | . . . . 1 . 1 . . Fabricators . | . . . . . . . . . Repair Stations . | . . . . . . . . . Recycling Units . | . . . . . . . . . Scanalyzers 1 | . . . . 1 . . . . Garrison Access . | . . . . . . . . . Total Hacks 23 | . . . 5 14 . 4 . . Successful 20 | . . . 5 11 . 4 . . Failed 3 | . . . . 3 . . . . Catastrophic . | . . . . . . . . . Database Lockouts . | . . . . . . . . . Manual 1 | . . . . 1 . . . . Terminals 5 | . . . . 1 . 4 . . Fabricators . | . . . . . . . . . Repair Stations . | . . . . . . . . . Recycling Units . | . . . . . . . . . Scanalyzers 13 | . . . . 13 . . . . Garrison Access . | . . . . . . . . . Terminal Hacks 9 | . . . 5 . . 4 . . Record 4 | . . . . . . 4 . . Robot Analysis 5 | . . . 5 . . . . . Fabricator Hacks . | . . . . . . . . . Repair Station Hacks . | . . . . . . . . . Recycling Unit Hacks . | . . . . . . . . . Scanalyzer 11 | . . . . 11 . . . . Insert Component 4 | . . . . 4 . . . . Analyze 7 | . . . . 7 . . . . Garrison Access Hacks . | . . . . . . . . . Unauthorized Hacks . | . . . . . . . . . Terminals . | . . . . . . . . . Fabricators . | . . . . . . . . . Repair Stations . | . . . . . . . . . Recycling Units . | . . . . . . . . . Scanalyzers . | . . . . . . . . . Garrison Access . | . . . . . . . . . Data Cores Recovered . | . . . . . . . . . Used . | . . . . . . . . . Hacking Detections 3 | . . . . 2 . 1 . . Full Trace Events 1 | . . . . . . 1 . . Feedback Events . | . . . . . . . . . Feedback Blocked . | . . . . . . . . . Robot Schematics Acquired . | . . . . . . . . . Robots Built . | . . . . . . . . . Authchips . | . . . . . . . . . Time . | . . . . . . . . . Total Robot Build Rating . | . . . . . . . . . Part Schematics Acquired 4 | . . . . 4 . . . . Parts Built . | . . . . . . . . . Authchips . | . . . . . . . . . Time . | . . . . . . . . . Total Part Build Rating . | . . . . . . . . . Parts Repaired . | . . . . . . . . . Time . | . . . . . . . . . Parts Recycled . | . . . . . . . . . Recycled Matter . | . . . . . . . . . Retrieved Matter . | . . . . . . . . . Retrieved Components . | . . . . . . . . . Parts Scanalyzed 4 | . . . . 4 . . . . Part Schematics Acquired 4 | . . . . 4 . . . . Parts Damaged . | . . . . . . . . . Bothacking | -11 -10 -10 -8 -6 -6 -6 -6 -5 ------------ Run | Yrd Mat Sub Scr Fac Low Low Zio Pro Used RIF Installer . | . . . . . . . . . Robots Hacked . | . . . . . . . . . Non-combat . | . . . . . . . . . Combat . | . . . . . . . . . Robot Hacks Applied . | . . . . . . . . . Relay Couplers Released . | . . . . . . . . . Fabnet Peak Effective % . | . . . . . . . . . Robots Rewired . | . . . . . . . . . Allies Hacked . | . . . . . . . . . Hacks Repelled . | . . . . . . . . . Allies | -11 -10 -10 -8 -6 -6 -6 -6 -5 -------- Run | Yrd Mat Sub Scr Fac Low Low Zio Pro Total Allies 3 | . . . . . . . 3 . Largest Group 3 | . . . . . . . 3 2 Highest-Rated Group 90 | . . . . . . . 90 62 Highest-Rated Ally 31 | . . . . . . . 31 31 Total Orders 2 | . . . . . . 2 . . EXPLORE 2 | . . . . . . 2 . . Ally Attacks 7 | . . . . . . . . 7 Total Damage 43 | . . . . . . . . 43 Kills . | . . . . . . . . . Allies Corrupted . | . . . . . . . . . Allies Melted . | . . . . . . . . . Intel | -11 -10 -10 -8 -6 -6 -6 -6 -5 ------- Run | Yrd Mat Sub Scr Fac Low Low Zio Pro Active Infowar (turns) 8134 | 135 202 288 3494 1034 691 883 1310 97 Optics 4013 | . . . . 1032 691 883 1310 97 Sensors 1359 | . . . . 1029 330 . . . Terrain 3692 | . . . . 1031 681 573 1310 97 Traps 73 | . . . . . . 73 . . Seismic 4928 | 135 202 288 3494 809 . . . . Robot Analysis Total 5 | . . . 5 . . . . . Derelict Logs Recovered 5 | . . 1 . . 3 1 . . Drone Launches 3 | . . . . . . 3 . . Drone Recoveries 1 | . . . . . . 1 . . Exploration | -11 -10 -10 -8 -6 -6 -6 -6 -5 ------------- Run | Yrd Mat Sub Scr Fac Low Low Zio Pro Turns Passed 8226 | 227 202 288 3494 1034 691 883 1310 97 Spaces Moved 4658 | 122 123 157 2070 523 387 414 838 24 Core 6 | 5 . . . . . . . 1 Treads 4652 | 117 123 157 2070 523 387 414 838 23 Legs . | . . . . . . . . . Wheels . | . . . . . . . . . Hover . | . . . . . . . . . Flight . | . . . . . . . . . Fastest Speed 50 | 50 160 160 157 165 165 152 155 152 Average Speed 162 | 155 160 160 165 165 165 158 155 179 Slowest Speed 400 | 160 160 160 250 165 166 240 155 400 Overloaded Moves . | . . . . . . . . . Propulsion Burnouts . | . . . . . . . . . Robots Hopped . | . . . . . . . . . Potential Cave-ins . | . . . . . . . . . Cave-ins Triggered . | . . . . . . . . . Exploration Rate (%) 40 | 5 29 23 90 14 50 59 83 9 Regions Visited 8 Branch Regions 6 Pre-discovered Areas 4 | . . . . . . . 4 . Known Exits Taken 4 | . . . . 1 1 1 1 . Unknown Exits Taken 4 | 1 1 1 1 . . . . . Scrap Searched 15 | . . . 7 . 2 5 1 . Spaces Dug . | . . . . . . . . . Terrain Destroyed 4 | . . . . . . 4 . . Melee . | . . . . . . . . . Projectile 4 | . . . . . . 4 . . AOE . | . . . . . . . . . Terrain Rammed . | . . . . . . . . . Walls Destroyed . | . . . . . . . . . Machines Disabled . | . . . . . . . . . Actions | -11 -10 -10 -8 -6 -6 -6 -6 -5 --------- Run | Yrd Mat Sub Scr Fac Low Low Zio Pro Total 5166 | 141 127 194 2141 667 425 573 851 47 Wait 215 | . . 36 39 75 16 46 2 1 Move 4651 | 121 122 156 2069 523 386 413 837 24 Hop . | . . . . . . . . . Pick Up 47 | 5 2 1 10 12 3 7 7 . Fast Attach 21 | 7 3 . . 2 1 8 . . Attach 30 | . . . . 10 3 12 . 5 Detach 3 | . . . . 2 . 1 . . Swap 24 | 1 . . 11 4 3 4 1 . Drop 28 | . . 1 12 6 1 4 4 . Fire 56 | 7 . . . 5 12 20 . 12 Melee 87 | . . . . 28 . 54 . 5 Ram . | . . . . . . . . . Kick . | . . . . . . . . . Crush . | . . . . . . . . . Escape Stasis . | . . . . . . . . . Rewire 4 | . . . . . . 4 . . Trap . | . . . . . . . . . Miscellaneous . | . . . . . . . . . Route ------- -11/Scrapyard -10/Materials (discovered 2 exits: [*Min] / [*Sub]) -10/Subcaves -8/Scraptown (discovered 2 exits: *Fac x2) -6/Factory -6/Lower Caves -6/Lower Caves (discovered 2 exits: [*Fac] / *Zio) -6/Zion (discovered 2 exits: [Dee] / *Pro) -5/Proximity Caves History --------- Turn | Location | Event 20 | -11/Scrapyard | Discovered new exit (range 16) 228 | -11/Scrapyard | Entered Materials 229 | -10/Materials | Met a group of wandering Federalists 332 | -10/Materials | Build established: Mutant 383 | -10/Materials | Discovered new exit (range 11) 386 | -10/Materials | Discovered new exit (range 11) 430 | -10/Materials | Entered Subcaves 431 | -10/Subcaves | Continued accompanying wandering Federalists (5) 649 | -10/Subcaves | Learned location of 2 exits from Materials 679 | -10/Subcaves | Shifting Twisted Machinery released Mak. Axe 694 | -10/Subcaves | Wandering Federalist uncovered a shortcut to Scraptown 706 | -10/Subcaves | Shifting Twisted Machinery released Sub. Optics 718 | -10/Subcaves | Entered Scraptown 1127 | -8/Scraptown | Discovered new exit (range 13) 1232 | -8/Scraptown | Heard Great Nut preacher, LISTEN AND RECITE! 1240 | -8/Scraptown | Visited Symbiants 1261 | -8/Scraptown | Visited Awakened 1288 | -8/Scraptown | Visited Comm Corps 1656 | -8/Scraptown | Visited Assassins FH 1712 | -8/Scraptown | Visited Cyclists 1866 | -8/Scraptown | Visited UFD Registry 1866 | -8/Scraptown | Registered with UFD as "Microshell" 1947 | -8/Scraptown | Visited Cartography Club 2313 | -8/Scraptown | Visited DA-N13 Charitable Foundation 2321 | -8/Scraptown | Found DCF Scrap (29 items) 2411 | -8/Scraptown | Visited Chapter 10 2606 | -8/Scraptown | Discovered new exit (range 5) 2623 | -8/Scraptown | Build established: Derelict-Mutant 2673 | -8/Scraptown | Visited Botcube Research 2710 | -8/Scraptown | Visited Scrap Suit Storage 2749 | -8/Scraptown | Visited Analyses Database 2790 | -8/Scraptown | Visited Observation Area 3203 | -8/Scraptown | Visited Curators Association 3247 | -8/Scraptown | Visited Junk Repository 3364 | -8/Scraptown | Visited Research Penetration Think Tank 4042 | -8/Scraptown | Met Optimus 4042 | -8/Scraptown | Accepted into 0bPrime 4212 | -8/Scraptown | Entered Factory 4212 | -6/Factory | Evolved 8 slots: Propulsion x2, Utility x5, Weapon x1 4705 | -6/Factory | Build established: Derelict-Gladiator 5235 | -6/Factory | Discovered new exit (range 5) 5241 | -6/Factory | Identified exit to Lower Caves 5246 | -6/Factory | Entered Lower Caves 5364 | -6/Lower Caves | Learned location of 1 exit from Factory 5417 | -6/Lower Caves | Encountered a Warlord checkpoint 5439 | -6/Lower Caves | Build established: Derelict-Assassin 5484 | -6/Lower Caves | Spotted B-75 Beast 5722 | -6/Lower Caves | Destroyed B-75 Beast 5861 | -6/Lower Caves | Discovered new exit (range 15) 5882 | -6/Lower Caves | Build established: Derelict-Mutant 5887 | -6/Lower Caves | Learned Factory stockpile data 5935 | -6/Lower Caves | Identified exit to Lower Caves 5937 | -6/Lower Caves | Entered another Lower Caves area 5947 | -6/Lower Caves | Discovered new exit (range 16) 6087 | -6/Lower Caves | Lost 8 parts (1p3n2u2w) 6159 | -6/Lower Caves | Attracted the attention of an 0b10 checkpoint 6339 | -6/Lower Caves | Attracted the attention of an 0b10 base 6367 | -6/Lower Caves | Core integrity fell below 50% 6395 | -6/Lower Caves | Lost 6 parts (4n1u1w) 6484 | -6/Lower Caves | Learned 8 Research zone layouts 6484 | -6/Lower Caves | Learned Research stockpile data 6561 | -6/Lower Caves | Identified exit to Zion 6820 | -6/Lower Caves | Entered Zion 6944 | -6/Zion | Learned location of Warlord (-4) 6946 | -6/Zion | Build established: Derelict-Skirmisher 6983 | -6/Zion | Found CR-A16's Pointy Stick 7190 | -6/Zion | Learned location of Armory (-4) 7276 | -6/Zion | Found Prototype Hackware 7403 | -6/Zion | Discovered new exit (range 20) 7416 | -6/Zion | Gained Derelict followers 7898 | -6/Zion | Found Prototype Device 8027 | -6/Zion | Discovered new exit (range 20) 8128 | -6/Zion | Identified exit to Proximity Caves 8130 | -6/Zion | Entered Proximity Caves 8130 | -5/Proximity Caves | Accompanied by 3 allies 8132 | -5/Proximity Caves | Ambushed by research squad 8169 | -5/Proximity Caves | Lost 3 allies 8211 | -5/Proximity Caves | Core integrity fell below 20% 8227 | -5/Proximity Caves | Destroyed by H-66 Slayer with Gauss Rifle Last Messages --------------- 08198_ Hvy. Battle Rifle destroyed. 08198_ Penetrated by Slug. 08198_ Adv. Treads destroyed. 08201_ Penetrated by Slug. 08205_ Enh. Flamer destroyed. 08207_ Penetrated by Slug. 08207_ Imp. Shield Generator destroyed. 08210_ Penetrated by Slug. 08210_ Angular Momentum Engine destroyed. 08210_ Penetrated by Slug. 08211_ Slug penetrates Wall. 08213_ Penetrated by Slug. 08213_ Imp. Medium Treads destroyed. 08216_ Slug penetrates Wall. 08220_ Mak. Spear destroyed. 08220_ Penetrated by Slug. 08220_ Hvy. Battle Rifle destroyed. 08224_ Penetrated by Slug. 08226_ Slug penetrates Wall. 08226_ Penetrated by Slug. Map ----- +----------------------------------------------------+ | ?????????????????????????????????????????????????? | | ?????????????????????????????????????????????????? | | ?????????????????????????????????????????????????? | | ?????????????????????????????????????????????????? | | ???????????????????#?????????????????????????????? | | ??????????????????????#??????????????????????????? | | ???????????????##?##### ##?#?????????????????????? | | ??????????#?#?###??####? ?###?#??????????????????? | | #???????####? ###??? ####??????????????????? | | ???? ?#?# ? ?##? #?#??????????????? | | ?????? ? #?? #?## ?????????????????? | | ???? ? ##?##?? ? ####? # ?????????????? | | #???? ## #### ? ???## ?? ??????????? | | ? ? ### #### ###### ?????????????? | | #### ?#### #####? ??#??#????????? | | #####??## #### #####? ## ??#??????????? | | ? #??###### ##?# ##### ?####?###?????????? | | ######?#### # ##?# #?#### ? ##?##??#?????????? | | ########?#### ### ### ## ## ???? ?????? | | #####? ###### ## $## ## ? ? ??????? | | ##### #### ?## ##?# ? ??######??????? | | ?## #?## ?### ####?## #???????????? | | ?## #?# ######## ####### #??##???????? | | ##?# ### ######## ####?# #?###???????? | | ###### ## h h #?#? ? #???##??????? | | ## ### %% @ ##?# ?? ##???#?????? | | ## = ### ########## #### ??##???#????? | | #|*% ## ########## ####? ##?## ? #?????? | | =%|[### ## ###?###### ### ??##### ? ???????? | | ![ ### ## ######### ## ####? ? ? ???????? | | #?### ## ### ##???????? | | ? ???????????? | | ##### ### ? ##?????????? | | ##?## ## ? #?##???????? | | ####### ### ## ? ? #???#??????? | | #### ######?# #####?# ? ?#?????????? | | ####?# #######? ###?## ????????????? | | #?###### ##?###### #####? ?#? ? ??????????? | | #?####### ###??#?########### ###? ? ????????? | | ????#?### ##?#######?###?### #?#?#?????????????? | | ?##??##?# ############?##?# ????#?#?#??????????? | | ??##????## ##?##??##?#?####? ##??#??#???????????? | | ?##??#??################?###??###????????????????? | | ??#??????#######?####???#?#?#?#??????????????????? | | ??#??#????###?###########??????#?????????????????? | | ?#???#?#????#??#?##??#??#????#???????????????????? | | ###?????#???????????????#????????????????????????? | | ??????#??##???#??????????????????????????????????? | | ????????????#????????????????????????????????????? | | ?????????????????????????????????????????????????? | +----------------------------------------------------+ Best States ------------- Heat Dissipation 37 Energy Generation 18 Energy Capacity 310 Matter Stores 300 Matter Capacity 300 Sight Range 22 Robot Scan Range 14 Terrain Scan Range 20 Terrain Scan Density 210 Armor Coverage 225 Melee Speed Boost 20 Evasion (%) 40 Targeting Accuracy 6 Recoil Reduction 4 Kinecelleration 30 Offensive Hacking 10 Item Schematics ----------------- Arm. Treads | -6/Factory | Scanalyzed Adv. Treads | -6/Factory | Scanalyzed Adv. Terrain Scanner | -6/Factory | Scanalyzed Enh. Flamer | -6/Factory | Scanalyzed Robot Schematics ------------------ None Fabricated ------------ Nothing Repaired ---------- Nothing Alien Tech Used ----------------- None Achievements -------------- None Challenges ------------ None Game ------ Seed SwordPointDriveblaster Manual? 0 Play Time 00:38:47 Cumulative 116.4 hours Start 2025.05.26 @ 23:41:05 End 2025.05.27 @ 00:25:18 Sessions 1 Manual Loads 0 Difficulty Rogue Special Mode None Game No. 298 Rogue 298 Adventurer 0 Explorer 0 Win Type - Total 2 Types 2/0/0/0/0/0/0/0/0/0 Lore% 58 Gallery% 52 Achievement% 44 Wizard Run 0 Options --------- Layout 0 ASCII 0 Keyboard 0 Movement Numpad Keybinds 0 Fullscreen 2 Font 18/Terminus Map View 76x50 Zoom Use 0% Tactical HUD 1 Map Filters NONE Filters NONE Steam 1 RUN: 5263c971-423c-4405-9bbf-deee1f400ff0